{"text_format":"1","workbook":"xlsx","n_sheets":2,"sheets":["Anlage zum Antrag","Auswahl"],"not_rendered":{"charts":0,"images":0,"macros":1,"external_links":0,"defined_names":15,"comments":0,"pivot_tables":0},"unopened":[],"bounds":{"document_bytes":16777216,"sheet_cells":100000,"rows_first":2000,"rows_last":500,"rows_between":2000,"halvings":0,"cell_chars":16384,"cell_head_chars":4096},"cells_cut":0,"cells_raw":0,"read":"whole","date_system":"1900"}

{"sheet":"Anlage zum Antrag","index":0,"n_rows":39,"n_cols":14,"rows_kept":39,"cut":false,"hidden":false,"merged":[[29,6,29,10],[30,6,30,10],[6,8,6,11],[24,1,24,11],[16,1,16,11],[9,1,9,11],[20,1,20,11],[12,0,12,4],[27,0,27,4],[28,0,28,4],[29,0,29,4],[13,0,13,4],[14,0,14,4],[0,8,3,12],[37,0,37,12],[3,1,3,2],[6,0,6,7],[31,0,31,10],[30,0,30,4],[12,6,12,10],[13,6,13,10],[14,6,14,10],[15,0,15,10],[19,6,19,10],[19,0,19,4],[23,0,23,4],[23,6,23,10],[27,6,27,10],[28,6,28,10]]}
["Anlage 1 zum Antrag auf Ausgleichszahlungen im Rahmen des EMFF zur Bewältigung der durch den Angriffskrieg Russlands gegen die Ukraine verursachten Mehrausgaben",null,null,null,null,null,null,null,"Hinweise zum Ausfüllen:\nDieses Formular arbeitet mit automatischen Funktionen (Makros), um die Anzahl der ausfüllbaren Zeilen zu steuern. Dazu müssen ggf. die Einstellungen an Ihrem Computer angepasst werden.\n\nFalls die Belegliste handschriftlich ausgefüllt werden soll (bitte nur in Ausnahmefällen), verwenden Sie bitte nicht dieses Excel-Formular, sondern das im Förderwegweiser dafür bereitgestellte pdf-Formular \"Belegliste - handschriftlich\"."]
["Belegliste zur Ermittlung der Netto-Mehrausgaben nach Nr. 3.2.1 im Antrag - bitte ausgefüllt dem Antrag beilegen"]
[]
["Antragsteller:",null,null,null,"Betriebsnummmer:"]
[null,"Name, Vorname"]
["Bitte für jede Kostenkategorie die Rechnungen nach Datum sortiert eintragen (und mit fortlaufenden Nummern versehen)."]
["Daten Rechnungsbelege",null,null,null,null,null,null,null,"Zahlungsdaten"]
["Kostenkategorie","lfd. Nr.","Rechnungsdatum\n(bei Abschlagsrechnungen Monat angeben)","Auftrags-/ Bestelldatum (schriftlich/mündlich)","Rechnungssteller / Firma","Menge\n(ggf. passende Einheit rechts auswählen)","Einheit","Rechnungsbetrag \nbrutto","Art der Zahlung\n(bar/ ÜW)","Zahlungsdatum","tatsächlich bezahlter Brutto- Betrag \n[EUR]","tatsächlich bezahlter Netto-Betrag\n[EUR]","Vermerk Bewilligungs-behörde"]
[null,"(1)","(2)","(3)","(4)","(5)","(6)","(7)","(8)","(9)","(10)","(11)","nicht ausfüllen"]
["Futtermittel"]
[null,{"$f":"IF(ISBLANK(A11),\"\",ROW(A11)-ROW(FU))","v":""},null,null,null,null,{"$f":"IF(ISBLANK(A11),\"\",IF(OR(OFFSET(A11,-B11,0)=\"Futtermittel\",OFFSET(A11,-B11,0)=\"Sauerstoff\"),\"kg\",IF(OFFSET(A11,-B11,0)=\"Strom\",\"KWh\",IF(OFFSET(A11,-B11,0)=\"Energie\",Auswahl!$B$14,\"Falscher Bezug!\"))))","v":""}]
["neue Zeile"]
["Teilsumme Menge Futterroggen1)    ",null,null,null,null,{"$f":"SUMIF(A$11:A$12,Auswahl!$B2,'Anlage zum Antrag'!F$11:$F12)","v":0},"Teilsumme Futterroggen2) ",null,null,null,null,{"$f":"SUMIF(A$11:A$12,Auswahl!$B2,'Anlage zum Antrag'!$L$11:L12)","v":0}]
["Teilsumme Menge Getreide (außer Roggen)1)  ",null,null,null,null,{"$f":"SUMIF(A$11:A$12,Auswahl!$B3,'Anlage zum Antrag'!F$11:$F12)","v":0},"Teilsumme Getreide (außer Roggen)2) ",null,null,null,null,{"$f":"SUMIF(A$11:A$12,Auswahl!$B3,'Anlage zum Antrag'!$L$11:L13)","v":0}]
["Teilsumme Menge sonstige Futtermittel1)  ",null,null,null,null,{"$f":"SUMIF(A$11:A$12,Auswahl!$B4,'Anlage zum Antrag'!F$11:$F12)","v":0},"Teilsumme sonstige Futtermittel2) ",null,null,null,null,{"$f":"SUMIF(A$11:A$12,Auswahl!$B4,'Anlage zum Antrag'!$L$11:L14)","v":0}]
["Gesamtsumme Futtermittel",null,null,null,null,null,null,null,null,null,null,{"$f":"SUM(L13:L15)","v":0}]
["Sauerstoff"]
[null,{"$f":"IF(ISBLANK(A18),\"\",ROW(A18)-ROW(SA))","v":""},null,null,null,null,{"$f":"IF(ISBLANK(A18),\"\",IF(OR(OFFSET(A18,-B18,0)=\"Futtermittel\",OFFSET(A18,-B18,0)=\"Sauerstoff\"),\"kg\",IF(OFFSET(A18,-B18,0)=\"Strom\",\"KWh\",IF(OFFSET(A18,-B18,0)=\"Energie\",Auswahl!$B$14,\"Falscher Bezug!\"))))","v":""}]
["neue Zeile"]
["Summe Menge Sauerstoff1 ",null,null,null,null,{"$f":"SUM(F18:F19)","v":0},"Summe Sauerstoff2) ",null,null,null,null,{"$f":"SUM(L18:L19)","v":0}]
["Strom"]
[null,{"$f":"IF(ISBLANK(A22),\"\",ROW(A22)-ROW(ST))","v":""},null,null,null,null,{"$f":"IF(ISBLANK(A22),\"\",IF(OR(OFFSET(A22,-B22,0)=\"Futtermittel\",OFFSET(A22,-B22,0)=\"Sauerstoff\"),\"kg\",IF(OFFSET(A22,-B22,0)=\"Strom\",\"KWh\",IF(OFFSET(A22,-B22,0)=\"Energie\",Auswahl!$B$14,\"Falscher Bezug!\"))))","v":""}]
["neue Zeile"]
["Summe Strom-Menge1)",null,null,null,null,{"$f":"SUM(F22:F23)","v":0},"Summe Strom2)",null,null,null,null,{"$f":"SUM(L22:L23)","v":0}]
["Energie"]
[null,{"$f":"IF(ISBLANK(A26),\"\",ROW(A26)-ROW(EN))","v":""}]
["neue Zeile"]
["Teilsumme Diesel-Menge1)",null,null,null,null,{"$f":"SUMIF(A$26:A$27,Auswahl!$B8,'Anlage zum Antrag'!F$26:$F27)","v":0},"Teilsumme Diesel2)",null,null,null,null,{"$f":"SUMIF(A$26:A$27,Auswahl!$B8,'Anlage zum Antrag'!$L$26:L27)","v":0}]
["Teilsumme Benzin-Menge1)",null,null,null,null,{"$f":"SUMIF(A$26:A$27,Auswahl!$B9,'Anlage zum Antrag'!F$26:$F28)","v":0},"Teilsumme Benzin2)",null,null,null,null,{"$f":"SUMIF(A$26:A$27,Auswahl!$B9,'Anlage zum Antrag'!$L$26:L28)","v":0}]
["Teilsumme Heizöl-Menge1)",null,null,null,null,{"$f":"SUMIF(A$26:A$27,Auswahl!$B10,'Anlage zum Antrag'!F$26:$F29)","v":0},"Teilsumme Heizöl2)",null,null,null,null,{"$f":"SUMIF(A$26:A$27,Auswahl!$B10,'Anlage zum Antrag'!$L$26:L29)","v":0}]
["Teilsumme Erdgas-Menge1)",null,null,null,null,{"$f":"SUMIF(A$26:A$27,Auswahl!$B11,'Anlage zum Antrag'!F$26:$F30)","v":0},"Teilsumme Erdgas2)",null,null,null,null,{"$f":"SUMIF(A$26:A$27,Auswahl!$B11,'Anlage zum Antrag'!$L$26:L30)","v":0}]
["Summe Energie",null,null,null,null,null,null,null,null,null,null,{"$f":"SUM(L28:L31)","v":0}]
[null,null,null,null,null,null,null,null,null,null,"Gesamtsumme",{"$f":"SUM(SuFU,SuSA,SuST,SuEN)","v":0}]
["1) Gesamtmenge der jeweiligen Einzelkategorie im Antrag in Spalte A der Tabelle 3.2.1 eintragen"]
["2) Gesamtsumme der jeweiligen Einzelkategorie im Antrag in Spalte B der Tabelle 3.2.1 eintragen."]
[]
["Erläuterungen: "]
[]
["neue Zeile",null,null,null,null,null,null,null,null,null,null,null,null,"EndeDokument"]

{"sheet":"Auswahl","index":1,"n_rows":14,"n_cols":2,"rows_kept":14,"cut":false,"hidden":true,"merged":[]}
["Drop-Down Futtermittel"]
["Kategorien","Futterroggen"]
[null,"Getreide (außer Roggen)"]
[null,"Sonstige Futtermittel"]
[]
[]
["Drop-Down Energie"]
["Kategorien, Spalte A","Diesel"]
[null,"Benzin"]
[null,"Heizöl"]
[null,"Erdgas"]
[]
["mögliche Einheiten, Spalte G","Liter"]
[null,"m³"]